[Event "Czech-ch U18-20 Open 2022"]
[Site "Spindleruv Mlyn"]
[Date "2022.03.17"]
[Round "9.5"]
[White "Kusa, Jakub"]
[Black "Ocelak, Jakub"]
[Result "1-0"]
[ECO "E19"]
[WhiteElo "2298"]
[BlackElo "2053"]
[Annotator "ChessBase"]
[PlyCount "39"]
[EventDate "2022.03.10"]
[EventType "tourn"]
[EventCountry "CZE"]
[SourceTitle "playchess.com"]
[Source "ChessBase"]
[SourceQuality "1"]
[TimeControl "40/5400+30:1800+30"]

1. d4 {[%emt 0:00:03]} Nf6 {[%emt 0:00:29]} 2. Nf3 {[%emt 0:00:07]} b6 {[%emt 0:00:04]} 3. c4 {[%emt 0:00:53]} e6 {[%emt 0:00:12]} 4. g3 {[%emt 0:00:37]} Bb7 {[%emt 0:00:06]} 5. Bg2 {[%emt 0:00:29]} Be7 {[%emt 0:00:24]} 6. O-O {[%emt 0:01:02]} O-O {[%emt 0:00:19]} 7. Nc3 {[%emt 0:00:19]} Ne4 {[%emt 0:01:39]} 8. Qc2 {[%emt 0:00:32]} Nxc3 {[%emt 0:00:58]} 9. bxc3 {[%emt 0:00:12]} f5 {[%emt 0:11:34]} 10. d5 {[%emt 0:01:51]} Na6 {[%emt 0:08:37]} 11. Nd4 {[%emt 0:05:56]} Nc5 {[%emt 0:03:04]} 12. Ba3 {[%emt 0:07:07]} Qc8 {[%emt 0:05:59]} 13. Rad1 {[%emt 0:04:38]} g6 {[%emt 0:07:10]} 14. e4 {[%emt 0:08:04]} Re8 {[%emt 0:08:20]} 15. e5 {[%emt 0:09:48]} Bf8 {[%emt 0:04:30]} 16. Rfe1 {[%emt 0:00:47]} a6 {[%emt 0:04:26]} 17. Re2 {[%emt 0:11:33]} b5 {[%emt 0:05:17]} 18. Bxc5 {[%emt 0:02:59]} Bxc5 {[%emt 0:00:09]} 19. dxe6 {[%emt 0:00:54]} dxe6 {[%emt 0:01:52]} 20. Nc6 {[%emt 0:00:37]} 1-0

[Event "Czech-ch U18-20 Open 2022"]
[Site "Spindleruv Mlyn"]
[Date "2022.03.17"]
[Round "9.6"]
[White "Hlavina, Matous"]
[Black "Frank, Adam"]
[Result "0-1"]
[ECO "A49"]
[WhiteElo "2112"]
[BlackElo "2270"]
[Annotator "ChessBase"]
[PlyCount "106"]
[EventDate "2022.03.10"]
[EventType "tourn"]
[EventCountry "CZE"]
[SourceTitle "playchess.com"]
[Source "ChessBase"]
[SourceQuality "1"]
[TimeControl "40/5400+30:1800+30"]

1. Nf3 {[%emt 0:00:10]} g6 {[%emt 0:02:13]} 2. g3 {[%emt 0:04:46]} Bg7 {[%emt 0:00:15]} 3. d4 {[%emt 0:00:21]} Nf6 {[%emt 0:03:57]} 4. Bg2 {[%emt 0:00:38]} O-O {[%emt 0:00:08]} 5. b3 {[%emt 0:00:08]} c5 {[%emt 0:04:07]} 6. Bb2 {[%emt 0:01:07]} cxd4 {[%emt 0:05:51]} 7. Nxd4 {[%emt 0:01:20]} e5 {[%emt 0:03:26]} 8. Nb5 {[%emt 0:02:54]} Qa5+ {[%emt 0:00:48]} 9. N5c3 {[%emt 0:00:36]} d5 {[%emt 0:02:39]} 10. O-O {[%emt 0:01:08]} e4 {[%emt 0:06:59]} 11. e3 {[%emt 0:01:57]} Ng4 {[%emt 0:11:47]} 12. Qc1 {[%emt 0:06:09]} Nc6 {[%emt 0:01:35]} 13. Ne2 {[%emt 0:03:44]} Nge5 {[%emt 0:01:08]} 14. Nd4 {[%emt 0:01:59]} Bg4 {[%emt 0:02:27]} 15. h3 {[%emt 0:13:44]} Nxd4 {[%emt 0:03:07]} 16. Bxd4 {[%emt 0:00:27]} Nf3+ {[%emt 0:02:45]} 17. Bxf3 {[%emt 0:02:18]} Bxd4 {[%emt 0:00:04]} 18. exd4 {[%emt 0:00:44]} Bxf3 {[%emt 0:00:04]} 19. Nd2 {[%emt 0:06:27]} Be2 {[%emt 0:02:23]} 20. Re1 {[%emt 0:00:10]} Bb5 {[%emt 0:00:04]} 21. c4 {[%emt 0:05:15]} Rac8 {[%emt 0:00:12]} 22. Qd1 {[%emt 0:03:51]} Bd7 {[%emt 0:00:31]} 23. Kh2 {[%emt 0:02:41]} f5 {[%emt 0:03:19]} 24. f4 {[%emt 0:03:29]} Qc3 {[%emt 0:01:05]} 25. Nf1 {[%emt 0:03:11]} dxc4 {[%emt 0:00:11]} 26. Rc1 {[%emt 0:02:52]} Qb4 {[%emt 0:00:13]} 27. Ne3 {[%emt 0:01:31]} cxb3 {[%emt 0:01:46]} 28. Qxb3+ {[%emt 0:00:35]} Qxb3 {[%emt 0:00:05]} 29. axb3 {[%emt 0:00:06]} Kf7 {[%emt 0:07:17]} 30. Kg2 {[%emt 0:01:56]} Rfd8 {[%emt 0:06:24]} 31. Nc4 {[%emt 0:02:22]} Ke6 {[%emt 0:04:38]} 32. Kf2 {[%emt 0:01:55]} Bc6 {[%emt 0:02:35]} 33. Ke3 {[%emt 0:01:03]} Bd5 {[%emt 0:00:02]} 34. Nd2 {[%emt 0:01:21]} a5 {[%emt 0:00:07]} 35. g4 {[%emt 0:02:00]} b5 {[%emt 0:00:43]} 36. gxf5+ {[%emt 0:01:06]} gxf5 {[%emt 0:00:05]} 37. Rg1 {[%emt 0:01:27]} a4 {[%emt 0:00:25]} 38. bxa4 {[%emt 0:01:38]} bxa4 {[%emt 0:00:23]} 39. Nb1 {[%emt 0:00:24]} Rg8 {[%emt 0:03:17]} 40. Kd2 {[%emt 0:06:12]} Rxc1 {[%emt 0:01:43]} 41. Rxc1 {[%emt 0:30:11]} Rg3 {[%emt 0:30:03]} 42. Rc3 {[%emt 0:00:38]} Rg2+ {[%emt 0:02:07]} 43. Kc1 {[%emt 0:00:58]} Rf2 {[%emt 0:02:39]} 44. Ra3 {[%emt 0:00:19]} Bb3 {[%emt 0:03:35]} 45. Nd2 {[%emt 0:00:34]} Kd5 {[%emt 0:00:21]} 46. Nxb3 {[%emt 0:00:36]} axb3 {[%emt 0:00:04]} 47. Rxb3 {[%emt 0:00:08]} Rxf4 {[%emt 0:00:33]} 48. Rb7 {[%emt 0:00:50]} Rh4 {[%emt 0:00:34]} 49. Rb5+ {[%emt 0:00:05]} Kxd4 {[%emt 0:00:05]} 50. Rxf5 {[%emt 0:00:04]} Rxh3 {[%emt 0:00:04]} 51. Rf8 {[%emt 0:00:27]} Kd3 {[%emt 0:00:07]} 52. Rd8+ {[%emt 0:00:15]} Ke2 {[%emt 0:00:07]} 53. Kc2 {[%emt 0:00:08]} e3 {[%emt 0:00:09]} 0-1

[Event "Czech-ch U18-20 Open 2022"]
[Site "Spindleruv Mlyn"]
[Date "2022.03.18"]
[Round "10.1"]
[White "Mica, Marek"]
[Black "Frank, Adam"]
[Result "1/2-1/2"]
[ECO "E65"]
[WhiteElo "2272"]
[BlackElo "2270"]
[Annotator "ChessBase"]
[PlyCount "26"]
[EventDate "2022.03.10"]
[EventType "tourn"]
[EventCountry "CZE"]
[SourceTitle "playchess.com"]
[Source "ChessBase"]
[SourceQuality "1"]
[TimeControl "40/5400+30:1800+30"]

1. Nf3 {[%emt 0:00:19]} g6 {[%emt 0:00:39]} 2. c4 {[%emt 0:00:26]} Bg7 {[%emt 0:00:18]} 3. g3 {[%emt 0:00:19]} Nf6 {[%emt 0:00:49]} 4. Bg2 {[%emt 0:00:53]} O-O {[%emt 0:01:01]} 5. d4 {[%emt 0:00:39]} d6 {[%emt 0:00:53]} 6. O-O {[%emt 0:01:00]} c5 {[%emt 0:04:59]} 7. Nc3 {[%emt 0:03:30]} Nc6 {[%emt 1:25:21]} 8. dxc5 {[%emt 0:03:05]} dxc5 {[%emt 0:00:00]} 9. Be3 {[%emt 0:05:29]} Qa5 {[%emt 0:00:00]} 10. Bd2 {[%emt 0:04:46]} Qd8 {[%emt 0:00:00]} 11. Be3 {[%emt 0:02:29]} Qa5 {[%emt 0:00:00]} 12. Bd2 {[%emt 0:01:04]} Qd8 {[%emt 0:00:00]} 13. Be3 {[%emt 0:00:49]} Qa5 {[%emt 0:00:00]} 1/2-1/2

[Event "Czech-ch U18-20 Open 2022"]
[Site "Spindleruv Mlyn"]
[Date "2022.03.18"]
[Round "10.2"]
[White "Ocelak, Jakub"]
[Black "Hlavina, Matous"]
[Result "0-1"]
[ECO "A64"]
[WhiteElo "2053"]
[BlackElo "2112"]
[Annotator "NA"]
[PlyCount "173"]
[EventDate "2022.03.10"]
[EventType "tourn"]
[EventCountry "CZE"]
[SourceTitle "playchess.com"]
[Source "ChessBase"]
[SourceQuality "1"]
[TimeControl "40/5400+30:1800+30"]

1. d4 {[%emt 0:00:07]} Nf6 {[%emt 0:00:16]} 2. c4 {[%emt 0:00:14]} c5 {[%emt 0:00:23]} 3. d5 {[%emt 0:00:11]} e6 {[%emt 0:00:26]} 4. g3 {[%emt 0:05:09]} exd5 {[%emt 0:01:35]} 5. cxd5 {[%emt 0:00:04]} d6 {[%emt 0:00:53]} 6. Bg2 {[%emt 0:00:04]} g6 {[%emt 0:00:05]} 7. Nc3 {[%emt 0:00:02]} Bg7 {[%emt 0:00:21]} 8. Nf3 {[%emt 0:00:05]} O-O {[%emt 0:01:08]} 9. O-O {[%emt 0:00:06]} a6 {[%emt 0:00:52]} 10. a4 {[%emt 0:02:18]} Re8 {[%emt 0:01:23]} 11. Nd2 {[%emt 0:04:29]} Nbd7 {[%emt 0:04:28]} 12. Nc4 {[%emt 0:02:56]} Ne5 {[%emt 0:01:43]} 13. Nxe5 {[%emt 0:08:13]} Rxe5 {[%emt 0:00:12]} 14. e4 {[%emt 0:05:02]} Re8 {[%emt 0:05:03]} 15. h3 {[%emt 0:02:29]} Qc7 {[%emt 0:04:31]} 16. Re1 {[%emt 0:04:25]} Nd7 {[%emt 0:01:43]} 17. f4 {[%emt 0:02:38]} Rb8 {[%emt 0:00:47]} 18. e5 {[%emt 0:06:03]} b5 {[%emt 0:05:12]} 19. axb5 {[%emt 0:04:14]} axb5 {[%emt 0:00:22]} 20. Kh2 {[%emt 0:04:49]} Qb6 {[%emt 0:04:11]} 21. e6 {[%emt 0:05:04]} Nf6 {[%emt 0:01:16]} 22. f5 {[%emt 0:00:42]} gxf5 $11 {[%emt 0:05:29]} 23. Bg5 {[%emt 0:04:00]} Qc7 {[%emt 0:06:44]} 24. Bxf6 {[%emt 0:12:57]} Bxf6 {[%emt 0:01:11]} 25. Qh5 {[%emt 0:00:03]} Kg7 {[%emt 0:04:57]} 26. Qxf5 {[%emt 0:01:29]} Qe7 {[%emt 0:03:26]} 27. Be4 {[%emt 0:06:19]} fxe6 {[%emt 0:07:20]} 28. Qxh7+ {[%emt 0:00:11]} Kf8 {[%emt 0:00:04]} 29. Qg6 {[%emt 0:02:05]} Qg7 {[%emt 0:01:30]} 30. Rf1 {[%emt 0:03:25]} Ke7 {[%emt 0:01:29]} 31. dxe6 {[%emt 0:00:07]} Qxg6 {[%emt 0:02:39]} 32. Bxg6 {[%emt 0:00:36]} Bxc3 {[%emt 0:02:08]} 33. bxc3 {[%emt 0:16:24]} Rf8 {[%emt 0:01:23]} 34. Ra7+ {[%emt 0:00:00]} Rb7 {[%emt 0:02:40]} 35. Rxf8 {[%emt 0:00:00]} Kxf8 {[%emt 0:00:07]} 36. e7+ {[%emt 0:00:00]} Kxe7 {[%emt 0:00:52]} 37. Ra8 {[%emt 0:00:00]} Be6 {[%emt 0:06:44]} 38. h4 {[%emt 0:00:00]} Kf6 {[%emt 0:01:05]} 39. h5 {[%emt 0:00:22]} b4 {[%emt 0:01:39]} 40. cxb4 {[%emt 0:01:25]} cxb4 {[%emt 0:00:05]} 41. Bb1 {[%emt 0:08:06]} Kg5 {[%emt 0:01:56]} 42. Ra6 {[%emt 0:00:27]} Rd7 {[%emt 0:03:19]} 43. Rb6 {[%emt 0:01:07]} b3 {[%emt 0:00:11]} 44. Bd3 {[%emt 0:04:37]} Kxh5 {[%emt 0:05:57]} 45. Be2+ {[%emt 0:01:43]} Kg5 {[%emt 0:03:25]} 46. Bd1 {[%emt 0:02:40]} Bd5 {[%emt 0:11:18]} 47. Bxb3 {[%emt 0:01:13]} Be4 {[%emt 0:01:11]} 48. Kg1 {[%emt 0:04:20]} d5 {[%emt 0:01:14]} 49. Bxd5 {[%emt 0:02:29]} Rxd5 {[%emt 0:00:26]} 50. Kf2 {[%emt 0:00:07]} Bf5 {[%emt 0:00:21]} 51. Rb8 {[%emt 0:00:45]} Rd2+ {[%emt 0:01:15]} 52. Ke3 {[%emt 0:00:15]} Rd3+ {[%emt 0:00:06]} 53. Ke2 {[%emt 0:00:12]} Rxg3 {[%emt 0:00:14]} 54. Rg8+ {[%emt 0:00:16]} Bg6 {[%emt 0:00:04]} 55. Kd2 {[%emt 0:00:11]} Kf4 {[%emt 0:00:18]} 56. Rf8+ {[%emt 0:01:43]} Bf5 {[%emt 0:00:10]} 57. Rf7 {[%emt 0:01:13]} Ke5 {[%emt 0:00:54]} 58. Rf8 {[%emt 0:00:26]} Be4 {[%emt 0:00:19]} 59. Re8+ {[%emt 0:00:59]} Kd4 {[%emt 0:00:06]} 60. Rd8+ {[%emt 0:00:10]} Bd5 {[%emt 0:00:05]} 61. Re8 {[%emt 0:00:45]} Rg7 {[%emt 0:01:40]} 62. Rd8 {[%emt 0:05:38]} Rg2+ {[%emt 0:00:09]} 63. Kc1 {[%emt 0:00:08]} Kc4 {[%emt 0:00:39]} 64. Rc8+ {[%emt 0:01:04]} Kb3 {[%emt 0:00:14]} 65. Rh8 {[%emt 0:01:21]} Be4 {[%emt 0:02:14]} 66. Rb8+ {[%emt 0:00:44]} Kc3 {[%emt 0:00:36]} 67. Rc8+ {[%emt 0:00:03]} Kd3 {[%emt 0:00:05]} 68. Rd8+ {[%emt 0:01:22]} Ke3 {[%emt 0:00:08]} 69. Rh8 {[%emt 0:00:39]} Rc2+ {[%emt 0:02:08]} 70. Kd1 {[%emt 0:00:02]} Rc3 {[%emt 0:00:15]} 71. Re8 {[%emt 0:01:10]} Rb3 {[%emt 0:00:06]} 72. Rc8 {[%emt 0:00:45]} Rb1+ {[%emt 0:00:27]} 73. Rc1 {[%emt 0:00:08]} Rb2 {[%emt 0:00:07]} 74. Rc7 {[%emt 0:00:59]} Rb8 {[%emt 0:02:05]} 75. Rc5 {[%emt 0:00:37]} Bd3 {[%emt 0:00:49]} 76. Re5+ {[%emt 0:00:32]} Kd4 {[%emt 0:00:23]} 77. Re7 {[%emt 0:00:42]} Kc3 {[%emt 0:00:36]} 78. Rc7+ {[%emt 0:00:23]} Bc4 {[%emt 0:00:06]} 79. Kc1 {[%emt 0:00:33]} Rf8 {[%emt 0:02:13]} 80. Rd7 {[%emt 0:00:22]} Rf2 {[%emt 0:01:01]} 81. Rd8 {[%emt 0:00:38]} Rh2 {[%emt 0:03:02]} 82. Rd7 {[%emt 0:00:19]} Rc2+ {[%emt 0:01:30]} 83. Kd1 {[%emt 0:00:28]} Ra2 {[%emt 0:01:46]} 84. Ke1 {[%emt 0:00:24]} Re2+ {[%emt 0:00:25]} 85. Kd1 {[%emt 0:01:28]} Re6 {[%emt 0:19:05]} 86. Rc7 {[%emt 0:00:30]} Rf6 {[%emt 0:00:30]} 87. Re7 0-1

[Event "Czech-ch U18-20 Open 2022"]
[Site "Spindleruv Mlyn"]
[Date "2022.03.18"]
[Round "10.5"]
[White "Svanda, Ondrej"]
[Black "Lajbl, Jan"]
[Result "1-0"]
[ECO "D00"]
[WhiteElo "2303"]
[BlackElo "2218"]
[Annotator "ChessBase"]
[PlyCount "87"]
[EventDate "2022.03.10"]
[EventType "tourn"]
[EventCountry "CZE"]
[SourceTitle "playchess.com"]
[Source "ChessBase"]
[SourceQuality "1"]
[TimeControl "40/5400+30:1800+30"]

1. d4 {[%emt 0:00:02]} d5 {[%emt 0:00:03]} 2. Nc3 {[%emt 0:00:05]} Nf6 {[%emt 0:00:31]} 3. Bf4 {[%emt 0:00:03]} Bf5 {[%emt 0:01:03]} 4. e3 {[%emt 0:00:37]} e6 {[%emt 0:00:55]} 5. Nb5 {[%emt 0:13:57]} Na6 {[%emt 0:04:10]} 6. Nf3 {[%emt 0:00:09]} c6 {[%emt 0:03:39]} 7. Nc3 {[%emt 0:00:02]} Qb6 {[%emt 0:01:03]} 8. Bxa6 {[%emt 0:18:40]} Qxa6 {[%emt 0:01:52]} 9. Ne5 {[%emt 0:00:02]} Bb4 {[%emt 0:02:54]} 10. f3 {[%emt 0:00:05]} Nh5 {[%emt 0:04:38]} 11. g4 {[%emt 0:04:32]} Nxf4 {[%emt 0:01:13]} 12. gxf5 {[%emt 0:03:45]} Nh5 {[%emt 0:11:47]} 13. fxe6 {[%emt 0:01:11]} fxe6 {[%emt 0:02:09]} 14. Qd3 {[%emt 0:06:37]} Qxd3 {[%emt 0:01:17]} 15. cxd3 {[%emt 0:00:01]} Bd6 {[%emt 0:02:29]} 16. f4 {[%emt 0:00:02]} Bxe5 {[%emt 0:00:29]} 17. dxe5 {[%emt 0:00:10]} d4 {[%emt 0:05:21]} 18. exd4 {[%emt 0:02:46]} Nxf4 {[%emt 0:00:55]} 19. Kd2 {[%emt 0:05:38]} Rd8 {[%emt 0:03:55]} 20. Ne4 {[%emt 0:01:03]} Rxd4 {[%emt 0:02:41]} 21. Ke3 {[%emt 0:00:06]} Rxd3+ {[%emt 0:00:43]} 22. Kxf4 {[%emt 0:00:01]} O-O+ {[%emt 0:00:21]} 23. Kg4 {[%emt 0:00:30]} Rd4 {[%emt 0:10:26]} 24. Rhe1 {[%emt 0:03:59]} Rf2 {[%emt 0:02:00]} 25. Rad1 {[%emt 0:00:04]} Rxd1 {[%emt 0:03:07]} 26. Rxd1 {[%emt 0:00:00]} Rxb2 {[%emt 0:02:59]} 27. Ng5 {[%emt 0:00:11]} Rb4+ {[%emt 0:02:48]} 28. Kg3 {[%emt 0:01:13]} Kf8 {[%emt 0:00:10]} 29. Rd7 {[%emt 0:05:38]} Rb5 {[%emt 0:02:21]} 30. Nxh7+ {[%emt 0:00:22]} Ke8 {[%emt 0:00:16]} 31. Rxg7 {[%emt 0:00:11]} Rxe5 {[%emt 0:00:40]} 32. Nf6+ {[%emt 0:00:19]} Kf8 {[%emt 0:00:09]} 33. Rxb7 {[%emt 0:02:07]} Rg5+ {[%emt 0:01:00]} 34. Ng4 {[%emt 0:00:40]} Ra5 {[%emt 0:00:12]} 35. h4 {[%emt 0:01:49]} Rxa2 {[%emt 0:00:15]} 36. h5 {[%emt 0:00:03]} Ra3+ {[%emt 0:01:02]} 37. Kh4 {[%emt 0:00:08]} Rf3 {[%emt 0:01:56]} 38. Kg5 {[%emt 0:02:29]} Rf7 {[%emt 0:00:29]} 39. Rxf7+ {[%emt 0:00:14]} Kxf7 {[%emt 0:00:04]} 40. h6 {[%emt 0:00:03]} a5 {[%emt 0:00:12]} 41. Ne5+ {[%emt 0:30:07]} Kg8 {[%emt 0:30:03]} 42. Kg6 {[%emt 0:00:03]} a4 {[%emt 0:00:04]} 43. h7+ {[%emt 0:00:03]} Kh8 {[%emt 0:00:05]} 44. Nf7# {[%emt 0:32:43]} 1-0